[Event "*** Titled Tuesday Blitz"]
[Site "Chess.com"]
[Date "2018.09.04"]
[Round "1"]
[White "ShadyH9"]
[Black "chessmaxusa"]
[Result "1/2-1/2"]
[WhiteElo "2180"]
[BlackElo "2514"]
[TimeControl "180+2"]
[EndTime "13:45:00 PDT"]
[Termination "Game drawn by repetition"]

1. d4 {[%clk 0:03:00.4]} 1... c6 {[%clk 0:03:01.9]} 2. c4 {[%clk 0:03:00]} 2...
d5 {[%clk 0:03:03.3]} 3. Nf3 {[%clk 0:03:01]} 3... Nf6 {[%clk 0:03:04.7]} 4. Qc2
{[%clk 0:03:01.8]} 4... Bg4 {[%clk 0:03:05.3]} 5. Nbd2 {[%clk 0:02:58.6]} 5...
Bh5 {[%clk 0:03:06.1]} 6. g3 {[%clk 0:02:46.1]} 6... e6 {[%clk 0:03:07.2]} 7.
Bg2 {[%clk 0:02:46.5]} 7... Nbd7 {[%clk 0:03:08.4]} 8. O-O {[%clk 0:02:46.9]}
8... Be7 {[%clk 0:03:09.5]} 9. Re1 {[%clk 0:02:31.1]} 9... O-O {[%clk 0:03:08]}
10. e4 {[%clk 0:02:19.1]} 10... dxe4 {[%clk 0:03:06.5]} 11. Nxe4 {[%clk
0:02:20.8]} 11... Nxe4 {[%clk 0:03:08.4]} 12. Qxe4 {[%clk 0:02:19.1]} 12... Bg6
{[%clk 0:03:08.8]} 13. Qe2 {[%clk 0:02:19.2]} 13... Re8 {[%clk 0:03:07.2]} 14.
Bf4 {[%clk 0:02:14.7]} 14... a5 {[%clk 0:03:06.7]} 15. Rad1 {[%clk 0:02:06.2]}
15... Bb4 {[%clk 0:03:02.6]} 16. Rf1 {[%clk 0:01:55.4]} 16... a4 {[%clk
0:03:02.2]} 17. c5 {[%clk 0:01:52.1]} 17... Ba5 {[%clk 0:02:59.1]} 18. Ne5
{[%clk 0:01:49.4]} 18... Nf6 {[%clk 0:02:54.8]} 19. Nc4 {[%clk 0:01:48.8]} 19...
Bc7 {[%clk 0:02:54.1]} 20. Bxc7 {[%clk 0:01:48.4]} 20... Qxc7 {[%clk 0:02:55]}
21. Nd6 {[%clk 0:01:49.3]} 21... Red8 {[%clk 0:02:55.9]} 22. h4 {[%clk
0:01:36.3]} 22... h6 {[%clk 0:02:54]} 23. Qe5 {[%clk 0:01:19.7]} 23... Rac8
{[%clk 0:02:22.6]} 24. Bf3 {[%clk 0:01:19]} 24... Ne8 {[%clk 0:02:20.8]} 25. Nc4
{[%clk 0:01:14]} 25... Qxe5 {[%clk 0:02:17.8]} 26. Nxe5 {[%clk 0:01:11]} 26...
Bh7 {[%clk 0:02:14.3]} 27. Nc4 {[%clk 0:01:05.4]} 27... Ra8 {[%clk 0:02:05.4]}
28. a3 {[%clk 0:01:04.4]} 28... Nc7 {[%clk 0:01:59.9]} 29. Nd6 {[%clk
0:00:56.9]} 29... Ra7 {[%clk 0:01:58.7]} 30. Rfe1 {[%clk 0:00:57.2]} 30... Ne8
{[%clk 0:01:58.5]} 31. Nc4 {[%clk 0:00:57]} 31... Bc2 {[%clk 0:01:58.9]} 32. Rc1
{[%clk 0:00:50.1]} 32... Bb3 {[%clk 0:01:59.5]} 33. Nd2 {[%clk 0:00:27.5]} 33...
Bd5 {[%clk 0:01:58.3]} 34. Bxd5 {[%clk 0:00:24.8]} 34... Rxd5 {[%clk 0:01:58.3]}
35. Rc4 {[%clk 0:00:25.5]} 35... Nc7 {[%clk 0:01:56.9]} 36. Nb1 {[%clk
0:00:20.7]} 36... Nb5 {[%clk 0:01:57.1]} 37. Re4 {[%clk 0:00:20.4]} 37... Rd7
{[%clk 0:01:53.3]} 38. Nc3 {[%clk 0:00:21.1]} 38... Nxc3 {[%clk 0:01:54.2]} 39.
bxc3 {[%clk 0:00:22.4]} 39... Kf8 {[%clk 0:01:41.7]} 40. Re2 {[%clk 0:00:21.2]}
40... Ke7 {[%clk 0:01:42.3]} 41. Rb2 {[%clk 0:00:21.7]} 41... Rd8 {[%clk
0:01:41.2]} 42. Rbb4 {[%clk 0:00:22]} 42... Rda8 {[%clk 0:01:42]} 43. f4 {[%clk
0:00:20.9]} 43... h5 {[%clk 0:01:41.7]} 44. Kf2 {[%clk 0:00:21.9]} 44... Kd7
{[%clk 0:01:38.4]} 45. Ke3 {[%clk 0:00:22.7]} 45... Kc7 {[%clk 0:01:39.6]} 46.
Rb6 {[%clk 0:00:20.5]} 46... Rd8 {[%clk 0:01:37.8]} 47. Rbb4 {[%clk 0:00:21.3]}
47... Rda8 {[%clk 0:01:38.7]} 48. Ke4 {[%clk 0:00:22.3]} 48... Kd7 {[%clk
0:01:35.5]} 49. Ke3 {[%clk 0:00:21.7]} 49... f6 {[%clk 0:01:35.8]} 50. Ke4
{[%clk 0:00:22.5]} 50... g6 {[%clk 0:01:37.1]} 51. Rb6 {[%clk 0:00:21.7]} 51...
Kc7 {[%clk 0:01:37.9]} 52. Rbb4 {[%clk 0:00:22.1]} 52... Kd7 {[%clk 0:01:38.2]}
53. Rb6 {[%clk 0:00:23.1]} 53... Rg8 {[%clk 0:01:36.2]} 54. Rbb4 {[%clk
0:00:23.8]} 54... Rga8 {[%clk 0:01:37.4]} 55. Rb6 {[%clk 0:00:24.6]} 55... Kc7
{[%clk 0:01:38.6]} 56. Rbb4 {[%clk 0:00:25.3]} 56... Ra6 {[%clk 0:01:38.9]} 57.
Ke3 {[%clk 0:00:25.3]} 57... Ra5 {[%clk 0:01:38.9]} 58. Ke4 {[%clk 0:00:25.7]}
58... R8a7 {[%clk 0:01:32.7]} 59. Ke3 {[%clk 0:00:25.8]} 59... Ra8 {[%clk
0:01:33.8]} 60. Ke4 {[%clk 0:00:26.7]} 60... R5a6 {[%clk 0:01:34.9]} 61. Ke3
{[%clk 0:00:26.9]} 61... R6a7 {[%clk 0:01:36.2]} 62. Ke4 {[%clk 0:00:27.4]}
62... Ra5 {[%clk 0:01:35.6]} 63. Ke3 {[%clk 0:00:28.3]} 63... R8a7 {[%clk
0:01:33.6]} 64. Ke4 {[%clk 0:00:29.3]} 64... R7a6 {[%clk 0:01:32.7]} 65. Ke3
{[%clk 0:00:29.6]} 65... Ra8 {[%clk 0:01:34]} 66. Ke4 {[%clk 0:00:30.7]} 66...
R8a6 {[%clk 0:01:30.3]} 67. Ke3 {[%clk 0:00:31.6]} 67... Ra8 {[%clk 0:01:29.1]}
68. Ke4 {[%clk 0:00:32.7]} 1/2-1/2

[Event "*** Titled Tuesday Blitz"]
[Site "Chess.com"]
[Date "2018.09.04"]
[Round "1"]
[White "nochewycandy"]
[Black "Paladin61"]
[Result "0-1"]
[WhiteElo "2148"]
[BlackElo "2507"]
[TimeControl "180+2"]
[EndTime "13:45:13 PDT"]
[Termination "Paladin61 won by resignation"]

1. c4 {[%clk 0:02:56]} 1... e5 {[%clk 0:03:00.4]} 2. g3 {[%clk 0:02:56.9]} 2...
Nf6 {[%clk 0:03:01.5]} 3. Bg2 {[%clk 0:02:57.6]} 3... d5 {[%clk 0:03:02.9]} 4.
cxd5 {[%clk 0:02:59.5]} 4... Nxd5 {[%clk 0:03:04.2]} 5. Nc3 {[%clk 0:02:59.8]}
5... Nb6 {[%clk 0:03:05]} 6. Nf3 {[%clk 0:02:59.9]} 6... Nc6 {[%clk 0:03:05.7]}
7. O-O {[%clk 0:02:57.4]} 7... Be7 {[%clk 0:03:06.9]} 8. d3 {[%clk 0:02:55.9]}
8... O-O {[%clk 0:03:07.6]} 9. a3 {[%clk 0:02:56.1]} 9... Be6 {[%clk 0:03:07.9]}
10. b4 {[%clk 0:02:53]} 10... a5 {[%clk 0:03:07.2]} 11. b5 {[%clk 0:02:53.3]}
11... Nd4 {[%clk 0:03:08.4]} 12. Bb2 {[%clk 0:02:45.1]} 12... Nb3 {[%clk
0:02:48.6]} 13. Rb1 {[%clk 0:02:38.8]} 13... f6 {[%clk 0:02:49.4]} 14. Nd2
{[%clk 0:02:35.9]} 14... Nxd2 {[%clk 0:02:49.8]} 15. Qxd2 {[%clk 0:02:37.8]}
15... Nc4 {[%clk 0:02:50.4]} 16. Qc2 {[%clk 0:02:30.7]} 16... Nxb2 {[%clk
0:02:43.1]} 17. Qxb2 {[%clk 0:02:32.6]} 17... Rb8 {[%clk 0:02:31.1]} 18. Rfc1
{[%clk 0:02:28.7]} 18... Qd6 {[%clk 0:02:18]} 19. Ne4 {[%clk 0:02:25.9]} 19...
Qxa3 {[%clk 0:01:18.2]} 20. Rxc7 {[%clk 0:02:13.2]} 20... Qxb2 {[%clk
0:01:16.4]} 21. Rxb2 {[%clk 0:02:13.7]} 21... Ba3 {[%clk 0:01:01.5]} 22. Rbc2
{[%clk 0:02:11.1]} 22... Rfc8 {[%clk 0:01:01.3]} 23. b6 {[%clk 0:02:08.6]} 23...
a4 {[%clk 0:00:30.5]} 24. Nc5 {[%clk 0:01:54.7]} 24... Bxc5 {[%clk 0:00:30.6]}
25. R2xc5 {[%clk 0:01:47]} 25... a3 {[%clk 0:00:29.3]} 26. Ra5 {[%clk
0:01:38.3]} 26... a2 {[%clk 0:00:07.4]} 27. Bf3 {[%clk 0:01:23.9]} 27... Ra8
{[%clk 0:00:05.6]} 28. Rxc8+ {[%clk 0:01:24.6]} 28... Rxc8 {[%clk 0:00:06.4]}
29. Bg4 {[%clk 0:00:48.3]} 29... Bxg4 {[%clk 0:00:04.6]} 30. Rxa2 {[%clk
0:00:48.7]} 30... Rc6 {[%clk 0:00:04.6]} 31. Rb2 {[%clk 0:00:49.3]} 31... Be6
{[%clk 0:00:05.2]} 32. f3 {[%clk 0:00:44.8]} 32... Kf8 {[%clk 0:00:05.6]} 33.
Kf2 {[%clk 0:00:46.2]} 33... Ke7 {[%clk 0:00:06.8]} 34. Ke3 {[%clk 0:00:47.8]}
34... Kd6 {[%clk 0:00:07.2]} 35. d4 {[%clk 0:00:44.5]} 35... exd4+ {[%clk
0:00:07.7]} 36. Kxd4 {[%clk 0:00:46.4]} 36... Rc4+ {[%clk 0:00:08.5]} 37. Kd3
{[%clk 0:00:46.8]} 37... Kc6 {[%clk 0:00:09.2]} 38. e4 {[%clk 0:00:44]} 38...
Rc5 {[%clk 0:00:10.2]} 39. f4 {[%clk 0:00:35.9]} 39... Rb5 {[%clk 0:00:10.8]}
40. Rc2+ {[%clk 0:00:30.1]} 40... Kxb6 {[%clk 0:00:11.7]} 41. f5 {[%clk
0:00:28.5]} 41... Bd7 {[%clk 0:00:12.5]} 42. Kd4 {[%clk 0:00:28.9]} 42... Rb4+
{[%clk 0:00:12.5]} 43. Kd5 {[%clk 0:00:29.8]} 43... Bc6+ {[%clk 0:00:13.2]} 44.
Ke6 {[%clk 0:00:30.7]} 44... Bxe4 {[%clk 0:00:11.1]} 45. Rf2 {[%clk 0:00:27.8]}
45... Rb5 {[%clk 0:00:10.6]} 46. g4 {[%clk 0:00:28.4]} 46... Rc5 {[%clk
0:00:09.6]} 47. Rb2+ {[%clk 0:00:24.3]} 47... Ka7 {[%clk 0:00:08.9]} 48. Kd6
{[%clk 0:00:18.1]} 48... Rc2 {[%clk 0:00:07.9]} 49. Rxc2 {[%clk 0:00:14.8]}
49... Bxc2 {[%clk 0:00:08.8]} 50. Ke7 {[%clk 0:00:16.7]} 50... b5 {[%clk
0:00:09.6]} 51. Kf8 {[%clk 0:00:17.6]} 51... b4 {[%clk 0:00:10.1]} 52. Kxg7
{[%clk 0:00:18.5]} 52... h5 {[%clk 0:00:06.9]} 53. g5 {[%clk 0:00:17.8]} 53...
fxg5 {[%clk 0:00:06.3]} 54. f6 {[%clk 0:00:19.3]} 54... Bb3 {[%clk 0:00:07.3]}
55. Kh6 {[%clk 0:00:20.2]} 55... Bf7 {[%clk 0:00:07.3]} 56. Kxg5 {[%clk
0:00:21.3]} 56... b3 {[%clk 0:00:08.3]} 57. Kh6 {[%clk 0:00:21.9]} 57... b2
{[%clk 0:00:09.5]} 58. Kg7 {[%clk 0:00:23.8]} 58... Bd5 {[%clk 0:00:10.4]} 59.
f7 {[%clk 0:00:24.9]} 59... Bxf7 {[%clk 0:00:11.3]} 60. Kxf7 {[%clk 0:00:26.8]}
60... b1=Q {[%clk 0:00:11.8]} 61. Kf6 {[%clk 0:00:28.2]} 61... Qg1 {[%clk
0:00:12.6]} 62. h4 {[%clk 0:00:29.6]} 62... Qg4 {[%clk 0:00:13]} 63. Ke5 {[%clk
0:00:31.5]} 63... Qxh4 {[%clk 0:00:14]} 64. Kd6 {[%clk 0:00:33.4]} 64... Qg4
{[%clk 0:00:15.6]} 0-1

[Event "*** Titled Tuesday Blitz"]
[Site "Chess.com"]
[Date "2018.09.04"]
[Round "1"]
[White "TrimitziosP7"]
[Black "GreatDamnedRedSpot"]
[Result "1-0"]
[WhiteElo "2658"]
[BlackElo "2322"]
[TimeControl "180+2"]
[EndTime "13:45:50 PDT"]
[Termination "TrimitziosP7 won by resignation"]

1. Nf3 {[%clk 0:03:01.9]} 1... c6 {[%clk 0:03:00.5]} 2. c4 {[%clk 0:03:02.4]}
2... Na6 {[%clk 0:03:01.3]} 3. Nc3 {[%clk 0:03:01.7]} 3... Nc7 {[%clk
0:03:02.5]} 4. d4 {[%clk 0:03:02]} 4... d5 {[%clk 0:03:03.7]} 5. cxd5 {[%clk
0:03:02.6]} 5... cxd5 {[%clk 0:03:04.4]} 6. Bf4 {[%clk 0:03:03.4]} 6... e6
{[%clk 0:03:05.4]} 7. e3 {[%clk 0:03:03.7]} 7... Bd6 {[%clk 0:03:06.5]} 8. Bg3
{[%clk 0:03:04.3]} 8... Nf6 {[%clk 0:03:06.9]} 9. Bd3 {[%clk 0:03:04.9]} 9...
O-O {[%clk 0:03:07.1]} 10. Qc2 {[%clk 0:03:06.1]} 10... Qe7 {[%clk 0:03:07]} 11.
O-O-O {[%clk 0:03:05.4]} 11... Bd7 {[%clk 0:03:07.7]} 12. Kb1 {[%clk 0:03:06.3]}
12... Rfc8 {[%clk 0:03:08.4]} 13. Qe2 {[%clk 0:03:04.6]} 13... a6 {[%clk
0:03:04.4]} 14. Rc1 {[%clk 0:03:02.6]} 14... b5 {[%clk 0:02:53.6]} 15. Qd2
{[%clk 0:02:53.2]} 15... b4 {[%clk 0:02:40]} 16. Ne2 {[%clk 0:02:52.7]} 16...
Bb5 {[%clk 0:02:41.1]} 17. Bxd6 {[%clk 0:02:52]} 17... Qxd6 {[%clk 0:02:41.6]}
18. Ng3 {[%clk 0:02:53.5]} 18... a5 {[%clk 0:02:30.1]} 19. Ne5 {[%clk
0:02:52.9]} 19... a4 {[%clk 0:02:28.9]} 20. Bxb5 {[%clk 0:02:25.8]} 20... Nxb5
{[%clk 0:02:29.3]} 21. Qd3 {[%clk 0:02:27.7]} 21... Qb6 {[%clk 0:02:20.6]} 22.
Rc2 {[%clk 0:02:07.2]} 22... g6 {[%clk 0:01:31.1]} 23. Rhc1 {[%clk 0:02:05.6]}
23... Rxc2 {[%clk 0:01:32.1]} 24. Qxc2 {[%clk 0:02:07.3]} 24... a3 {[%clk
0:01:32.4]} 25. Qc6 {[%clk 0:01:52.2]} 25... Rb8 {[%clk 0:01:32]} 26. Qxb6
{[%clk 0:01:39.8]} 26... Rxb6 {[%clk 0:01:33]} 27. Rc6 {[%clk 0:01:40.3]} 27...
Rb7 {[%clk 0:01:27.6]} 28. Nd3 {[%clk 0:01:20.4]} 28... axb2 {[%clk 0:01:23]}
29. Kxb2 {[%clk 0:01:21.1]} 29... Nc3 {[%clk 0:01:20.9]} 30. Kb3 {[%clk
0:01:10.6]} 30... Nce4 {[%clk 0:01:06.4]} 31. Nxe4 {[%clk 0:00:54.3]} 31... Nxe4
{[%clk 0:01:08.3]} 32. Nc5 {[%clk 0:00:52.7]} 32... Rb8 {[%clk 0:00:37]} 33.
Nxe4 {[%clk 0:00:47.4]} 33... dxe4 {[%clk 0:00:38.9]} 34. Rc4 {[%clk 0:00:47.4]}
34... Kg7 {[%clk 0:00:36.5]} 35. Rxb4 {[%clk 0:00:48.5]} 35... Ra8 {[%clk
0:00:37.1]} 36. a4 {[%clk 0:00:46.8]} 36... Kf6 {[%clk 0:00:37.2]} 37. Rb5
{[%clk 0:00:48]} 37... Rc8 {[%clk 0:00:33.1]} 38. Rc5 {[%clk 0:00:46.9]} 38...
Rb8+ {[%clk 0:00:34.3]} 39. Ka2 {[%clk 0:00:48]} 39... Rb4 {[%clk 0:00:32.9]}
40. Ka3 {[%clk 0:00:46.4]} 40... Rb1 {[%clk 0:00:34]} 41. Rc2 {[%clk 0:00:47.8]}
41... Ke7 {[%clk 0:00:27.9]} 42. Rb2 {[%clk 0:00:48.3]} 42... Ra1+ {[%clk
0:00:28]} 43. Kb4 {[%clk 0:00:49.3]} 43... Kd6 {[%clk 0:00:26.8]} 44. Kb5 {[%clk
0:00:47.5]} 44... Kc7 {[%clk 0:00:24.5]} 45. a5 {[%clk 0:00:47.2]} 45... Kb7
{[%clk 0:00:25.5]} 46. Kc5+ {[%clk 0:00:38.7]} 46... Ka6 {[%clk 0:00:25.1]} 47.
Kd6 {[%clk 0:00:27.1]} 47... Rh1 {[%clk 0:00:18.8]} 48. f3 {[%clk 0:00:14.9]}
48... Rxh2 {[%clk 0:00:17.9]} 49. fxe4 {[%clk 0:00:15.5]} 49... Rh1 {[%clk
0:00:19.2]} 50. Ra2 {[%clk 0:00:14.9]} 50... Re1 {[%clk 0:00:20.4]} 51. Ra3
{[%clk 0:00:15.5]} 51... Re2 {[%clk 0:00:21.9]} 52. d5 {[%clk 0:00:16.5]} 52...
Rxg2 {[%clk 0:00:22.2]} 53. dxe6 {[%clk 0:00:16.8]} 53... fxe6 {[%clk
0:00:24.1]} 54. Kxe6 {[%clk 0:00:18.7]} 54... h5 {[%clk 0:00:25.7]} 55. Kd7
{[%clk 0:00:17.3]} 55... h4 {[%clk 0:00:27.6]} 56. e5 {[%clk 0:00:17.7]} 56...
h3 {[%clk 0:00:29.5]} 57. e6 {[%clk 0:00:19.1]} 57... Rd2+ {[%clk 0:00:31.4]}
58. Ke8 {[%clk 0:00:18.3]} 58... h2 {[%clk 0:00:33.3]} 59. Ra1 {[%clk
0:00:18.8]} 59... Re2 {[%clk 0:00:34.8]} 60. e7 {[%clk 0:00:17.8]} 60... Rxe3
{[%clk 0:00:35.9]} 61. Kf7 {[%clk 0:00:19.4]} 61... Rf3+ {[%clk 0:00:36.2]} 62.
Kxg6 {[%clk 0:00:20.9]} 62... Re3 {[%clk 0:00:37.3]} 63. Kf7 {[%clk 0:00:22.3]}
63... Rf3+ {[%clk 0:00:37.7]} 64. Ke8 {[%clk 0:00:23.4]} 64... Rf2 {[%clk
0:00:34]} 65. Rd1 {[%clk 0:00:21.6]} 65... Kxa5 {[%clk 0:00:31.8]} 66. Kd8
{[%clk 0:00:20.5]} 66... Rd2+ {[%clk 0:00:22.9]} 67. Rxd2 {[%clk 0:00:21.6]}
67... h1=Q {[%clk 0:00:24.5]} 68. e8=Q {[%clk 0:00:22.9]} 68... Qh4+ {[%clk
0:00:18.8]} 69. Qe7 {[%clk 0:00:20.1]} 69... Qh8+ {[%clk 0:00:20.1]} 70. Kd7
{[%clk 0:00:16.9]} 70... Qh3+ {[%clk 0:00:20.1]} 71. Qe6 {[%clk 0:00:15.6]}
71... Qh7+ {[%clk 0:00:20.9]} 72. Kd6 {[%clk 0:00:14.3]} 1-0

[Event "*** Titled Tuesday Blitz"]
[Site "Chess.com"]
[Date "2018.09.04"]
[Round "1"]
[White "FMJoseHerrera"]
[Black "Sethu0025"]
[Result "1-0"]
[WhiteElo "2377"]
[BlackElo "2695"]
[TimeControl "180+2"]
[EndTime "13:46:04 PDT"]
[Termination "FMJoseHerrera won by resignation"]

1. Nf3 {[%clk 0:02:59.4]} 1... Nf6 {[%clk 0:03:00.7]} 2. g3 {[%clk 0:03:01.3]}
2... d5 {[%clk 0:02:59.9]} 3. Bg2 {[%clk 0:03:02.1]} 3... c5 {[%clk 0:03:00.9]}
4. O-O {[%clk 0:03:03.1]} 4... e6 {[%clk 0:03:01.5]} 5. c3 {[%clk 0:03:03.4]}
5... Nc6 {[%clk 0:03:01.5]} 6. a3 {[%clk 0:03:04.5]} 6... b6 {[%clk 0:03:01.3]}
7. b4 {[%clk 0:03:05.3]} 7... Bb7 {[%clk 0:03:02.2]} 8. d3 {[%clk 0:03:06.3]}
8... Be7 {[%clk 0:03:02.7]} 9. Nbd2 {[%clk 0:03:07]} 9... O-O {[%clk 0:03:03.2]}
10. Bb2 {[%clk 0:03:08.4]} 10... Rc8 {[%clk 0:03:03.4]} 11. Qb3 {[%clk
0:03:09.1]} 11... Qc7 {[%clk 0:02:59]} 12. Rfc1 {[%clk 0:03:07.8]} 12... Rfd8
{[%clk 0:02:59.4]} 13. a4 {[%clk 0:03:07.5]} 13... Qb8 {[%clk 0:02:55.4]} 14. a5
{[%clk 0:03:05.5]} 14... cxb4 {[%clk 0:02:53.8]} 15. cxb4 {[%clk 0:03:05.8]}
15... Nxb4 {[%clk 0:02:48.4]} 16. axb6 {[%clk 0:03:04.7]} 16... axb6 {[%clk
0:02:46.9]} 17. Be5 {[%clk 0:02:57.1]} 17... Bd6 {[%clk 0:02:33.7]} 18. Bxf6
{[%clk 0:02:43.3]} 18... gxf6 {[%clk 0:02:34.5]} 19. Qb2 {[%clk 0:02:35.9]}
19... Kg7 {[%clk 0:02:33.4]} 20. Nf1 {[%clk 0:02:25.3]} 20... Rxc1 {[%clk
0:02:33.7]} 21. Rxc1 {[%clk 0:02:24.6]} 21... Rc8 {[%clk 0:02:34.9]} 22. Rb1
{[%clk 0:02:09.2]} 22... Qc7 {[%clk 0:02:10.9]} 23. Qd4 {[%clk 0:02:07.5]} 23...
Qe7 {[%clk 0:01:44.7]} 24. Ne3 {[%clk 0:01:51.7]} 24... b5 {[%clk 0:01:45.8]}
25. Qg4+ {[%clk 0:01:46.4]} 25... Kh8 {[%clk 0:01:46.3]} 26. Qh5 {[%clk
0:01:47.4]} 26... Bc6 {[%clk 0:01:35]} 27. Ng4 {[%clk 0:01:47.4]} 27... Nc2
{[%clk 0:01:32.3]} 28. Rc1 {[%clk 0:01:39.1]} 28... Nb4 {[%clk 0:01:13.4]} 29.
Qh6 {[%clk 0:01:30.5]} 29... Qf8 {[%clk 0:01:00.4]} 30. Qxf6+ {[%clk 0:01:29.5]}
30... Qg7 {[%clk 0:01:01.5]} 31. Qh4 {[%clk 0:01:26.4]} 31... f5 {[%clk
0:00:57.8]} 32. Ne3 {[%clk 0:01:18.9]} 32... Bd7 {[%clk 0:00:51.3]} 33. Rxc8+
{[%clk 0:01:16.9]} 33... Bxc8 {[%clk 0:00:53.2]} 34. Qd8+ {[%clk 0:01:10]} 34...
Qf8 {[%clk 0:00:54.3]} 35. Qa5 {[%clk 0:01:10.5]} 35... Bd7 {[%clk 0:00:54.6]}
36. Ng5 {[%clk 0:01:09.5]} 36... h6 {[%clk 0:00:49.2]} 37. Nf3 {[%clk
0:01:05.7]} 37... Qb8 {[%clk 0:00:49.8]} 38. Nd4 {[%clk 0:01:05.7]} 38... Nc6
{[%clk 0:00:46.4]} 39. Nxc6 {[%clk 0:00:58.6]} 39... Bxc6 {[%clk 0:00:48.3]} 40.
Qc3+ {[%clk 0:01:00.1]} 40... d4 {[%clk 0:00:43.8]} 41. Qxd4+ {[%clk 0:00:50.3]}
41... Be5 {[%clk 0:00:44.6]} 42. Qh4 {[%clk 0:00:47.3]} 42... Bxg2 {[%clk
0:00:42.1]} 43. Qxh6+ {[%clk 0:00:48.4]} 43... Kg8 {[%clk 0:00:43.3]} 44. Qxe6+
{[%clk 0:00:49.6]} 44... Kh8 {[%clk 0:00:43.5]} 45. Kxg2 {[%clk 0:00:48.7]}
45... b4 {[%clk 0:00:42.7]} 46. Nxf5 {[%clk 0:00:50]} 46... b3 {[%clk
0:00:40.9]} 47. Qh6+ {[%clk 0:00:48.6]} 47... Kg8 {[%clk 0:00:42.2]} 48. Qg6+
{[%clk 0:00:50.1]} 48... Kh8 {[%clk 0:00:43.1]} 49. Nh6 {[%clk 0:00:45.9]} 49...
Bg7 {[%clk 0:00:42.3]} 50. Nf7+ {[%clk 0:00:45]} 50... Kg8 {[%clk 0:00:43.1]}
51. Nh6+ {[%clk 0:00:30.9]} 51... Kh8 {[%clk 0:00:43.9]} 52. Nf5 {[%clk
0:00:32.3]} 52... Qb7+ {[%clk 0:00:42.1]} 53. e4 {[%clk 0:00:32.1]} 53... b2
{[%clk 0:00:41.9]} 54. Qe8+ {[%clk 0:00:21.1]} 54... Kh7 {[%clk 0:00:42.5]} 55.
Ne7 {[%clk 0:00:22.5]} 55... Qxe7 {[%clk 0:00:32.4]} 56. Qxe7 {[%clk 0:00:24.4]}
56... b1=Q {[%clk 0:00:33.1]} 57. Qh4+ {[%clk 0:00:25.4]} 57... Kg8 {[%clk
0:00:33.5]} 58. Qd8+ {[%clk 0:00:26.5]} 58... Kh7 {[%clk 0:00:34.6]} 59. Qd5
{[%clk 0:00:27.5]} 59... Qb8 {[%clk 0:00:33.1]} 60. h4 {[%clk 0:00:28.4]} 60...
Qf8 {[%clk 0:00:33.5]} 61. Qf5+ {[%clk 0:00:28.9]} 61... Qxf5 {[%clk 0:00:34]}
62. exf5 {[%clk 0:00:30.8]} 62... Bd4 {[%clk 0:00:35.2]} 63. g4 {[%clk
0:00:31.9]} 63... Kg7 {[%clk 0:00:36.2]} 64. Kf3 {[%clk 0:00:32.8]} 64... Kf6
{[%clk 0:00:37.4]} 65. Kg3 {[%clk 0:00:30.8]} 65... Bc3 {[%clk 0:00:35.9]} 66.
f4 {[%clk 0:00:30.3]} 66... Be1+ {[%clk 0:00:36.9]} 67. Kh3 {[%clk 0:00:31.7]}
67... Bd2 {[%clk 0:00:38]} 68. Kg3 {[%clk 0:00:29.1]} 68... Be1+ {[%clk
0:00:39.2]} 69. Kf3 {[%clk 0:00:27.2]} 69... Bxh4 {[%clk 0:00:40.2]} 70. Ke4
{[%clk 0:00:29.1]} 70... Be1 {[%clk 0:00:40.4]} 71. g5+ {[%clk 0:00:30.6]} 71...
Kf7 {[%clk 0:00:41.5]} 72. d4 {[%clk 0:00:30.4]} 72... Bc3 {[%clk 0:00:41.7]}
73. d5 {[%clk 0:00:31.5]} 73... Bb4 {[%clk 0:00:41]} 74. f6 {[%clk 0:00:28.2]}
74... Kg6 {[%clk 0:00:40.2]} 75. Ke5 {[%clk 0:00:29.2]} 75... Bc3+ {[%clk
0:00:40.8]} 76. Ke6 {[%clk 0:00:30.5]} 76... Bd2 {[%clk 0:00:40.5]} 77. f7
{[%clk 0:00:31.7]} 77... Kg7 {[%clk 0:00:41.4]} 78. Ke7 {[%clk 0:00:27.6]} 78...
Bb4+ {[%clk 0:00:30.7]} 79. d6 {[%clk 0:00:28.2]} 79... Bxd6+ {[%clk 0:00:32.6]}
80. Kxd6 {[%clk 0:00:29.7]} 80... Kxf7 {[%clk 0:00:34.5]} 81. f5 {[%clk
0:00:30.9]} 1-0